fUST/lending_fUST_20240731
["ID","MTS","AMOUNT","RATE_DAILY","PERIOD"]
[333732344,1722421838906,-151.0,0.00013688,2]
[333732345,1722421838916,-151.0,0.00013688,2]
[333732346,1722421838927,-151.0,0.00013688,2]
[333732347,1722421838938,-151.0,0.00013688,2]
[333732348,1722421838948,-151.0,0.00013688,2]
[333732349,1722421838959,-151.0,0.00013688,2]
[333732350,1722421838968,-318999.302432,0.00013688,2]
[333732351,1722421838978,-2809.49,0.00013689,2]
[333732352,1722421838987,-2809.49,0.00013689,2]
[333732353,1722421838997,-64250.46918156,0.00013697,5]
[333732354,1722421839006,-151.0,0.00013697,2]
[333732355,1722421839015,-151.0,0.00013697,2]
[333732356,1722421839029,-151.0,0.00013697,2]
[333732357,1722421839039,-586.35606,0.00013697,2]
[333732358,1722421839048,-151.0,0.00013697,2]
[333732359,1722421839059,-151.0,0.00013697,2]
[333732360,1722421839070,-151.0,0.00013697,2]
[333732361,1722421839080,-357.888183,0.00013697,2]
[333732362,1722421839090,-357.888183,0.00013697,2]
[333732363,1722421839101,-151.0,0.00013697,2]
[333732364,1722421839121,-151.0,0.00013697,2]
[333732365,1722421839134,-198.751779,0.00013697,2]
[333732366,1722421839144,-151.0,0.00013697,2]
[333732367,1722421839156,-151.0,0.00013697,2]
[333732368,1722421839167,-151.0,0.00013697,2]
[333732369,1722421839177,-2809.49,0.00013697,2]
[333732370,1722421839188,-2809.49,0.00013697,2]
[333732371,1722421839198,-2809.49,0.00013697,2]
[333732372,1722421839208,-2809.49,0.00013697,2]
[333732373,1722421839220,-2809.49,0.00013697,2]
[333732374,1722421839229,-2809.49,0.00013697,2]
[333732375,1722421839239,-2809.49,0.00013697,2]
[333732376,1722421839249,-2809.49,0.00013697,2]
[333732377,1722421839259,-2809.49,0.00013697,2]
[333732378,1722421839269,-598.764619,0.00013697,2]
[333732379,1722421839279,-598.764619,0.00013697,2]
[333732380,1722421839288,-151.0,0.00013697,2]
[333732381,1722421839299,-151.0,0.00013697,2]
[333732382,1722421839309,-151.0,0.00013697,2]
[333732383,1722421839319,-152.367118,0.00013697,2]
[333732384,1722421839329,-151.0,0.00013698,2]
[333732385,1722421839340,-500.0,0.00013698,2]
[333732386,1722421839350,-500.0,0.00013698,2]
[333732387,1722421839360,-500.0,0.00013698,2]
[333732388,1722421839370,-500.0,0.00013698,2]
[333732389,1722421839381,-500.0,0.00013698,2]
[333732390,1722421839391,-510.54420126,0.00013698,2]
[333732391,1722421839402,-500.0,0.00013698,2]
[333732392,1722421839412,-287.85659771,0.00013698,2]
[333732393,1722421839423,-202.5,0.00013698,2]
[333732394,1722421839433,-500.0,0.00013698,2]
[333732395,1722421839442,-151.0,0.00013698,2]
[333732396,1722421839453,-500.0,0.00013698,2]
[333732397,1722421839462,-500.0,0.00013698,2]
[333732398,1722421839473,-500.0,0.00013698,2]
[333732399,1722421839483,-500.0,0.00013698,2]
[333732400,1722421839493,-500.0,0.00013698,2]
[333732401,1722421839504,-500.0,0.00013698,2]
[333732402,1722421839514,-500.0,0.00013698,2]
[333732403,1722421839524,-500.0,0.00013698,2]
[333732404,1722421839533,-500.0,0.00013698,2]
[333732405,1722421839543,-500.0,0.00013698,2]
[333732406,1722421839553,-500.0,0.00013698,2]
[333732407,1722421839563,-500.0,0.00013698,2]
[333732408,1722421839573,-500.0,0.00013698,2]
[333732409,1722421839583,-500.0,0.00013698,2]
[333732410,1722421839593,-500.0,0.00013698,2]
[333732411,1722421839603,-151.0,0.00013698,2]
[333732412,1722421839613,-151.0,0.00013698,2]
[333732413,1722421839622,-500.0,0.00013698,2]
[333732414,1722421839633,-1260.81,0.00013698,2]
[333732415,1722421839643,-500.0,0.00013698,2]
[333732416,1722421839653,-505.07442751,0.00013698,2]
[333732417,1722421839663,-500.0,0.00013698,2]
[333732418,1722421839672,-500.0,0.00013698,2]
[333732419,1722421839682,-500.0,0.00013698,2]
[333732420,1722421839692,-500.0,0.00013698,2]
[333732421,1722421839703,-500.0,0.00013698,2]
[333732422,1722421839712,-500.0,0.00013698,2]
[333732423,1722421839723,-500.0,0.00013698,2]
[333732424,1722421839733,-151.0,0.00013698,2]
[333732425,1722421839742,-151.0,0.00013698,2]
[333732426,1722421839752,-151.0,0.00013698,2]
[333732427,1722421839762,-800.8,0.00013698,2]
[333732428,1722421839772,-151.0,0.00013698,2]
[333732429,1722421839782,-155.06164,0.00013698,2]
[333732430,1722421839791,-500.0,0.00013698,2]
[333732431,1722421839801,-500.0,0.00013698,2]
[333732432,1722421839811,-500.0,0.00013698,2]
[333732433,1722421839820,-379.12943933,0.00013698,2]
[333732434,1722421839830,-264.79464039,0.00013698,2]
[333732435,1722421839839,-500.0,0.00013698,2]
[333732436,1722421839850,-292.428137,0.00013698,2]
[333732437,1722421839860,-500.0,0.00013698,2]
[333732438,1722421839869,-500.0,0.00013698,2]
[333732439,1722421839879,-586.35606,0.00013698,2]
[333732440,1722421839888,-586.35606,0.00013698,2]
[333732442,1722421839898,-586.35606,0.00013698,2]
[333732444,1722421839908,-586.35606,0.00013698,2]
[333732445,1722421839918,-586.35606,0.00013698,2]
[333732446,1722421839928,-586.35606,0.00013698,2]
[333732447,1722421839938,-586.35606,0.00013698,2]
[333732448,1722421839948,-586.35606,0.00013698,2]
[333732449,1722421839958,-586.35606,0.00013698,2]
[333732450,1722421839968,-586.35606,0.00013698,2]
[333732451,1722421839977,-586.35606,0.00013698,2]
[333732452,1722421839987,-586.35606,0.00013698,2]
[333732453,1722421839996,-586.35606,0.00013698,2]
[333732454,1722421840006,-586.35607,0.00013698,2]
[333732455,1722421840016,-500.0,0.00013698,2]
[333732457,1722421840031,-500.0,0.00013698,2]
[333732458,1722421840040,-500.0,0.00013698,2]
[333732459,1722421840050,-633.81,0.00013698,2]
[333732461,1722421840060,-500.0,0.00013698,2]
[333732462,1722421840071,-500.0,0.00013698,2]
[333732464,1722421840081,-500.0,0.00013698,2]
[333732465,1722421840091,-502.43460247,0.00013698,2]
[333732467,1722421840103,-500.30097071,0.00013698,2]
[333732469,1722421840113,-500.0,0.00013698,2]
[333732470,1722421840123,-500.0,0.00013698,2]
[333732471,1722421840132,-1114.24,0.00013698,2]
[333732472,1722421840143,-508.44466777,0.00013698,2]
[333732473,1722421840153,-500.0,0.00013698,2]
[333732474,1722421840164,-500.0,0.00013698,2]
[333732475,1722421840174,-500.0,0.00013698,2]
[333732476,1722421840183,-500.0,0.00013698,2]
[333732477,1722421840193,-379.82178042,0.00013698,2]
[333732478,1722421840202,-500.0,0.00013698,2]
[333732479,1722421840212,-693.93,0.00013698,2]
[333732480,1722421840221,-500.0,0.00013698,2]
[333732482,1722421840231,-500.0,0.00013698,2]
[333732483,1722421840241,-500.0,0.00013698,2]
[333732484,1722421840250,-151.0,0.00013698,2]
[333732485,1722421840261,-151.0,0.00013698,2]
[333732486,1722421840270,-151.0,0.00013698,2]
[333732487,1722421840280,-500.0,0.00013698,2]
[333732488,1722421840289,-500.0,0.00013698,2]
[333732489,1722421840299,-500.0,0.00013698,2]
[333732490,1722421840309,-500.0,0.00013698,2]
[333732491,1722421840319,-500.0,0.00013698,2]
[333732492,1722421840328,-452.17824681,0.00013698,2]
[333732493,1722421840338,-608.92,0.00013698,2]
[333732494,1722421840350,-692.86,0.00013698,2]
[333732495,1722421840360,-509.96349792,0.00013698,2]
[333732497,1722421840370,-500.0,0.00013698,2]
[333732499,1722421840379,-1515.51,0.00013698,2]
[333732500,1722421840389,-500.0,0.00013698,2]
[333732501,1722421840400,-991.76,0.00013698,2]
[333732503,1722421840411,-500.0,0.00013698,2]
[333732504,1722421840421,-500.0,0.00013698,2]
[333732505,1722421840430,-500.0,0.00013698,2]
[333732506,1722421840441,-508.83107723,0.00013698,2]
[333732507,1722421840450,-500.0,0.00013698,2]
[333732508,1722421840461,-500.0,0.00013698,2]
[333732509,1722421840471,-500.0,0.00013698,2]
[333732510,1722421840480,-502.24443089,0.00013698,2]
[333732511,1722421840490,-621.66820482,0.00013698,2]
[333732512,1722421840499,-510.94026851,0.00013698,2]
[333732513,1722421840510,-500.0,0.00013698,2]
[333732514,1722421840520,-151.0,0.00013698,2]
[333732515,1722421840530,-500.0,0.00013698,2]
[333732516,1722421840540,-151.0,0.00013698,2]
[333732517,1722421840550,-151.0,0.00013698,2]
[333732518,1722421840560,-151.0,0.00013698,2]
[333732519,1722421840570,-500.0,0.00013698,2]
[333732520,1722421840580,-1466.09,0.00013698,2]
[333732521,1722421840589,-152.338537,0.00013698,2]
[333732522,1722421840600,-500.0,0.00013698,2]
[333732523,1722421840609,-500.0,0.00013698,2]
[333732524,1722421840619,-527.90124887,0.00013698,2]
[333732525,1722421840628,-500.0,0.00013698,2]
[333732526,1722421840639,-500.0,0.00013698,2]
[333732527,1722421840649,-500.0,0.00013698,2]
[333732528,1722421840659,-500.0,0.00013698,2]
[333732529,1722421840668,-357.888183,0.00013698,2]
[333732530,1722421840679,-357.888183,0.00013698,2]
[333732531,1722421840688,-357.888183,0.00013698,2]
[333732532,1722421840698,-357.888183,0.00013698,2]
[333732533,1722421840713,-420.48749809,0.00013698,2]
[333732534,1722421840723,-357.888183,0.00013698,2]
[333732535,1722421840732,-357.888183,0.00013698,2]
[333732536,1722421840741,-357.888183,0.00013698,2]
[333732537,1722421840750,-500.0,0.00013698,2]
[333732538,1722421840760,-500.0,0.00013698,2]
[333732539,1722421840770,-501.08699572,0.00013698,2]
[333732540,1722421840780,-357.888183,0.00013698,2]
[333732541,1722421840789,-357.888183,0.00013698,2]
[333732542,1722421840799,-357.888183,0.00013698,2]
[333732543,1722421840808,-357.888183,0.00013698,2]
[333732544,1722421840818,-357.888183,0.00013698,2]
[333732545,1722421840828,-357.888183,0.00013698,2]
[333732546,1722421840837,-357.88818393,0.00013698,2]
[333732547,1722421840847,-500.0,0.00013698,2]
[333732548,1722421840857,-500.0,0.00013698,2]
[333732549,1722421840866,-500.0,0.00013698,2]
[333732550,1722421840875,-500.0,0.00013698,2]
[333732551,1722421840885,-500.0,0.00013698,2]
[333732552,1722421840895,-500.0,0.00013698,2]
[333732553,1722421840904,-500.0,0.00013698,2]
[333732554,1722421840914,-500.0,0.00013698,2]
[333732555,1722421840924,-500.0,0.00013698,2]
[333732556,1722421840933,-513.10565774,0.00013698,2]
[333732557,1722421840943,-500.0,0.00013698,2]
[333732558,1722421840952,-500.0,0.00013698,2]
[333732559,1722421840962,-500.0,0.00013698,2]
[333732560,1722421840971,-500.0,0.00013698,2]
[333732561,1722421840980,-500.0,0.00013698,2]
[333732562,1722421840990,-506.48279216,0.00013698,2]
[333732563,1722421841000,-532.39,0.00013698,2]
[333732564,1722421841009,-1062.74,0.00013698,2]
[333732565,1722421841019,-500.0,0.00013698,2]
[333732566,1722421841032,-500.0,0.00013698,2]
[333732567,1722421841041,-500.0,0.00013698,2]
[333732568,1722421841051,-733.92,0.00013698,2]
[333732569,1722421841061,-500.0,0.00013698,2]
[333732570,1722421841070,-500.0,0.00013698,2]
[333732571,1722421841081,-364.15548643,0.00013698,2]
[333732572,1722421841091,-500.0,0.00013698,2]
[333732573,1722421841103,-500.0,0.00013698,2]
[333732574,1722421841112,-500.0,0.00013698,2]
[333732575,1722421841121,-500.0,0.00013698,2]
[333732576,1722421841131,-500.0,0.00013698,2]
[333732577,1722421841140,-500.0,0.00013698,2]
[333732578,1722421841150,-518.09102675,0.00013698,2]
[333732579,1722421841160,-432.494495,0.00013698,2]
[333732580,1722421841171,-432.494495,0.00013698,2]
[333732581,1722421841181,-432.494495,0.00013698,2]
[333732582,1722421841192,-500.0,0.00013698,2]
[333732583,1722421841206,-432.49448561,0.00013698,2]
[333732584,1722421841221,-534.58339201,0.00013698,2]
[333732585,1722421841232,-500.0,0.00013698,2]
[333732586,1722421841243,-500.0,0.00013698,2]
[333732587,1722421841253,-500.0,0.00013698,2]
[333732588,1722421841263,-500.0,0.00013698,2]
[333732589,1722421841272,-500.0,0.00013698,2]
[333732590,1722421841283,-2516.08,0.00013698,2]
[333732591,1722421841293,-500.0,0.00013698,2]
[333732592,1722421841304,-151.0,0.00013698,2]
[333732593,1722421841314,-853.49,0.00013698,2]
[333732594,1722421841325,-500.0,0.00013698,2]
[333732595,1722421841334,-506.15917164,0.00013698,2]
[333732596,1722421841344,-500.0,0.00013698,2]
[333732597,1722421841354,-151.0,0.00013698,2]
[333732598,1722421841363,-151.0,0.00013698,2]
[333732599,1722421841373,-1418.64,0.00013698,2]
[333732600,1722421841383,-151.0,0.00013698,2]
[333732601,1722421841392,-151.0,0.00013698,2]
[333732602,1722421841402,-151.0,0.00013698,2]
[333732603,1722421841411,-151.0,0.00013698,2]
[333732604,1722421841421,-151.0,0.00013698,2]
[333732605,1722421841431,-967.37,0.00013698,2]
[333732606,1722421841440,-500.0,0.00013698,2]
[333732607,1722421841451,-918.17,0.00013698,2]
[333732608,1722421841461,-500.0,0.00013698,2]
[333732609,1722421841470,-500.0,0.00013698,2]
[333732610,1722421841480,-501.95535391,0.00013698,2]
[333732611,1722421841491,-2440.89,0.00013698,2]
[333732612,1722421841501,-1222.47,0.00013698,2]
[333732613,1722421841512,-500.0,0.00013698,2]
[333732614,1722421841522,-500.0,0.00013698,2]
[333732615,1722421841532,-500.0,0.00013698,2]
[333732616,1722421841542,-500.0,0.00013698,2]
[333732617,1722421841551,-500.0,0.00013698,2]
[333732618,1722421841561,-500.0,0.00013698,2]
[333732619,1722421841572,-500.0,0.00013698,2]
[333732620,1722421841584,-531.95,0.00013698,2]
[333732621,1722421841593,-151.0,0.00013698,2]
[333732622,1722421841604,-151.0,0.00013698,2]
[333732623,1722421841614,-151.0,0.00013698,2]
[333732624,1722421841623,-151.0,0.00013698,2]
[333732625,1722421841632,-151.0,0.00013698,2]
[333732626,1722421841642,-151.0,0.00013698,2]
[333732627,1722421841651,-151.0,0.00013698,2]
[333732628,1722421841661,-151.0,0.00013698,2]
[333732629,1722421841671,-500.0,0.00013698,2]
[333732630,1722421841681,-500.0,0.00013698,2]
[333732631,1722421841691,-503.19716598,0.00013698,2]
[333732632,1722421841700,-500.0,0.00013698,2]
[333732633,1722421841711,-509.03777539,0.00013698,2]
[333732634,1722421841722,-500.0,0.00013698,2]
[333732635,1722421841731,-645.67,0.00013698,2]
[333732636,1722421841743,-500.0,0.00013698,2]
[333732637,1722421841754,-500.0,0.00013698,2]
[333732638,1722421841764,-698.66,0.00013698,2]
[333732639,1722421841774,-500.0,0.00013698,2]
[333732640,1722421841785,-754.0,0.00013698,2]
[333732641,1722421841795,-500.0,0.00013698,2]
[333732642,1722421841805,-500.0,0.00013698,2]
[333732643,1722421841815,-652.78,0.00013698,2]
[333732644,1722421841824,-500.0,0.00013698,2]
[333732645,1722421841834,-328.85603228,0.00013698,2]
[333732646,1722421841843,-500.0,0.00013698,2]
[333732647,1722421841852,-501.68615931,0.00013698,2]
[333732648,1722421841862,-151.0,0.00013698,2]
[333732649,1722421841871,-151.0,0.00013698,2]
[333732650,1722421841881,-1457.98,0.00013698,2]
[333732651,1722421841892,-500.0,0.00013698,2]
[333732652,1722421841902,-520.39022666,0.00013698,2]
[333732653,1722421841911,-151.0,0.00013698,2]
[333732654,1722421841921,-1472.42,0.00013698,2]
[333732655,1722421841931,-590.05,0.00013698,2]
[333732656,1722421841941,-500.0,0.00013698,2]
[333732657,1722421841951,-500.0,0.00013698,2]
[333732658,1722421841961,-500.0,0.00013698,2]
[333732659,1722421841970,-500.0,0.00013698,2]
[333732660,1722421841981,-500.0,0.00013698,2]
[333732661,1722421841990,-655.53,0.00013698,2]
[333732662,1722421842000,-1164.76,0.00013698,2]
[333732663,1722421842010,-862.52,0.00013698,2]
[333732664,1722421842022,-611.07,0.00013698,2]
[333732665,1722421842033,-2809.49,0.00013698,2]
[333732666,1722421842043,-500.0,0.00013698,2]
[333732667,1722421842053,-1554.42,0.00013698,2]
[333732668,1722421842195,-643.63,0.00013698,2]
[333732669,1722421842228,-1130.87,0.00013698,2]
[333732670,1722421842238,-500.0,0.00013698,2]
[333732671,1722421842248,-500.0,0.00013698,2]
[333732672,1722421842259,-500.0,0.00013698,2]
[333732673,1722421842269,-1386.08,0.00013698,2]
[333732674,1722421842279,-300.0,0.00013698,2]
[333732675,1722421842289,-500.0,0.00013698,2]
[333732676,1722421842298,-500.0,0.00013698,2]
[333732677,1722421842308,-898.69,0.00013698,2]
[333732678,1722421842317,-1123.54,0.00013698,2]
[333732679,1722421842327,-500.0,0.00013698,2]
[333732680,1722421842336,-1054.79,0.00013698,2]
[333732681,1722421842346,-1371.18,0.00013698,2]
[333732682,1722421842356,-1248.06,0.00013698,2]
[333732683,1722421842365,-707.86,0.00013698,2]
[333732684,1722421842375,-586.44,0.00013698,2]
[333732685,1722421842385,-1660.51,0.00013698,2]
[333732686,1722421842395,-500.0,0.00013698,2]
[333732687,1722421842405,-500.0,0.00013698,2]
[333732688,1722421842415,-667.62,0.00013698,2]
[333732689,1722421842426,-3273.06,0.00013698,2]
[333732690,1722421842436,-500.0,0.00013698,2]
[333732691,1722421842447,-601.97,0.00013698,2]
[333732692,1722421842457,-1918.49,0.00013698,2]
[333732693,1722421842466,-2222.36,0.00013698,2]
[333732694,1722421842477,-2222.36,0.00013698,2]
[333732695,1722421842486,-2222.36,0.00013698,2]
[333732696,1722421842496,-2222.36,0.00013698,2]
[333732697,1722421842506,-2222.36,0.00013698,2]
[333732698,1722421842516,-2222.36,0.00013698,2]
[333732699,1722421842525,-649.83,0.00013698,2]
[333732700,1722421842535,-2222.36,0.00013698,2]
[333732701,1722421842545,-2222.36,0.00013698,2]
[333732702,1722421842555,-2222.36,0.00013698,2]
[333732703,1722421842564,-2222.36,0.00013698,2]
[333732704,1722421842574,-2222.36,0.00013698,2]
[333732705,1722421842584,-1353.08,0.00013698,2]
[333732706,1722421842593,-2222.36,0.00013698,2]
[333732707,1722421842603,-2222.36,0.00013698,2]
[333732708,1722421842613,-2222.36,0.00013698,2]
[333732709,1722421842622,-2222.36,0.00013698,2]
[333732710,1722421842632,-2222.36,0.00013698,2]
[333732711,1722421842642,-561.66723649,0.00013698,2]
[333732712,1722421842651,-2222.36,0.00013698,2]
[333732713,1722421842663,-2222.36,0.00013698,2]
[333732714,1722421842673,-2222.36,0.00013698,2]
[333732715,1722421842682,-2222.36,0.00013698,2]
[333732716,1722421842691,-500.0,0.00013698,2]
[333732717,1722421842701,-2222.36,0.00013698,2]
[333732718,1722421842710,-2222.36,0.00013698,2]
[333732719,1722421842721,-2222.36,0.00013698,2]
[333732720,1722421842730,-2222.44,0.00013698,2]
[333732721,1722421842739,-500.0,0.00013698,2]
[333732722,1722421842749,-935.52,0.00013698,2]
[333732723,1722421842759,-598.764619,0.00013698,2]
[333732724,1722421842768,-598.764619,0.00013698,2]
[333732725,1722421842778,-598.764619,0.00013698,2]
[333732726,1722421842788,-598.764619,0.00013698,2]
[333732727,1722421842798,-500.0,0.00013698,2]
[333732728,1722421842807,-598.764619,0.00013698,2]
[333732729,1722421842817,-598.764619,0.00013698,2]
[333732730,1722421842828,-598.764619,0.00013698,2]
[333732731,1722421842837,-598.764619,0.00013698,2]
[333732732,1722421842848,-598.764619,0.00013698,2]
[333732733,1722421842857,-598.764619,0.00013698,2]
[333732734,1722421842867,-598.764619,0.00013698,2]
[333732735,1722421842876,-598.764619,0.00013698,2]
[333732736,1722421842886,-8516.96,0.00013698,2]
[333732737,1722421842896,-598.764619,0.00013698,2]
[333732738,1722421842906,-598.764619,0.00013698,2]
[333732739,1722421842915,-598.764619,0.00013698,2]
[333732740,1722421842925,-598.764619,0.00013698,2]
[333732741,1722421842935,-598.764619,0.00013698,2]
[333732743,1722421842945,-598.76462,0.00013698,2]
[333732744,1722421842954,-891.86,0.00013698,2]
[333732745,1722421842963,-1465.98,0.00013698,2]
[333732746,1722421842973,-895.83,0.00013698,2]
[333732747,1722421842982,-500.0,0.00013698,2]
[333732748,1722421842992,-500.0,0.00013698,2]
[333732749,1722421843002,-151.0,0.00013698,2]
[333732751,1722421843011,-151.0,0.00013698,2]
[333732752,1722421843022,-151.0,0.00013698,2]
[333732753,1722421843033,-151.0,0.00013698,2]
[333732754,1722421843043,-151.0,0.00013698,2]
[333732755,1722421843052,-151.0,0.00013698,2]
[333732756,1722421843062,-151.0,0.00013698,2]
[333732757,1722421843073,-151.0,0.00013698,2]
[333732758,1722421843082,-500.0,0.00013698,2]
[333732759,1722421843092,-151.0,0.00013698,2]
[333732760,1722421843103,-151.0,0.00013698,2]
[333732761,1722421843112,-247.041276,0.00013698,2]
[333732762,1722421843122,-500.0,0.00013698,2]
[333732763,1722421843133,-447.931812,0.00013698,2]
[333732764,1722421843142,-447.931812,0.00013698,2]
[333732765,1722421843152,-447.931812,0.00013698,2]
[333732766,1722421843161,-500.0,0.00013698,2]
[333732767,1722421843170,-665.23,0.00013698,2]
[333732768,1722421843180,-507.39547471,0.00013698,2]
[333732769,1722421843189,-447.931812,0.00013698,2]
[333732770,1722421843199,-674.58,0.00013698,2]
[333732771,1722421843208,-447.931812,0.00013698,2]
[333732773,1722421843219,-447.931812,0.00013698,2]
[333732774,1722421843229,-1921.68,0.00013698,2]
[333732775,1722421843239,-500.0,0.00013698,2]
[333732777,1722421843248,-500.0,0.00013698,2]
[333732779,1722421843258,-500.0,0.00013698,2]
[333732780,1722421843267,-500.0,0.00013698,2]
[333732781,1722421843277,-500.0,0.00013698,2]
[333732782,1722421843286,-500.0,0.00013698,2]
[333732783,1722421843296,-500.0,0.00013698,2]
[333732784,1722421843305,-1589.63,0.00013698,2]
[333732785,1722421843315,-684.71,0.00013698,2]
[333732786,1722421843324,-615.7,0.00013698,2]
[333732787,1722421843334,-500.0,0.00013698,2]
[333732788,1722421843343,-2097.82,0.00013698,2]
[333732789,1722421843354,-500.0,0.00013698,2]
[333732790,1722421843363,-562.58,0.00013698,2]
[333732791,1722421843372,-806.13,0.00013698,2]
[333732792,1722421843382,-500.0,0.00013698,2]
[333732793,1722421843391,-570.47,0.00013698,2]
[333732794,1722421843401,-500.0,0.00013698,2]
[333732795,1722421843410,-502.01566386,0.00013698,2]
[333732796,1722421843419,-500.0,0.00013698,2]
[333732797,1722421843429,-1834.79,0.00013698,2]
[333732798,1722421843438,-700.92,0.00013698,2]
[333732799,1722421843447,-500.0,0.00013698,2]
[333732800,1722421843457,-1002.65,0.00013698,2]
[333732801,1722421843466,-500.0,0.00013698,2]
[333732802,1722421843476,-500.0,0.00013698,2]
[333732803,1722421843485,-500.0,0.00013698,2]
[333732804,1722421843494,-504.33909929,0.00013698,2]
[333732805,1722421843504,-500.0,0.00013698,2]
[333732806,1722421843513,-500.0,0.00013698,2]
[333732807,1722421843523,-500.0,0.00013698,2]
[333732808,1722421843532,-500.0,0.00013698,2]
[333732809,1722421843542,-500.0,0.00013698,2]
[333732810,1722421843551,-690.56,0.00013698,2]
[333732811,1722421843560,-500.0,0.00013698,2]
[333732812,1722421843569,-500.0,0.00013698,2]
[333732813,1722421843579,-500.0,0.00013698,2]
[333732814,1722421843589,-500.0,0.00013698,2]
[333732815,1722421843599,-500.0,0.00013698,2]
[333732816,1722421843609,-500.0,0.00013698,2]
[333732817,1722421843619,-3670.05,0.00013698,2]
[333732818,1722421843628,-193.78149823,0.00013698,2]
[333732819,1722421843638,-500.0,0.00013698,2]
[333732820,1722421843647,-500.0,0.00013698,2]
[333732821,1722421843657,-500.0,0.00013698,2]
[333732822,1722421843666,-500.0,0.00013698,2]
[333732823,1722421843675,-500.0,0.00013698,2]
[333732824,1722421843685,-11796.22,0.00013698,2]
[333732825,1722421843695,-2917.44,0.00013698,2]
[333732826,1722421843705,-1278.78,0.00013698,2]
[333732827,1722421843714,-500.0,0.00013698,2]
[333732828,1722421843724,-1090.73,0.00013698,2]
[333732829,1722421843733,-173.87327726,0.00013698,2]
[333732830,1722421843743,-4138.46,0.00013698,2]
[333732831,1722421843752,-500.0,0.00013698,2]
[333732832,1722421843761,-383.2498869,0.00013698,2]
[333732833,1722421843771,-500.0,0.00013698,2]
[333732834,1722421843780,-967.06,0.00013698,2]
[333732835,1722421843789,-538.00111446,0.00013698,2]
[333732836,1722421843798,-500.0,0.00013698,2]
[333732837,1722421843807,-851.64,0.00013698,2]
[333732838,1722421843816,-500.0,0.00013698,2]
[333732839,1722421843826,-500.0,0.00013698,2]
[333732840,1722421843836,-500.0,0.00013698,2]
[333732841,1722421843845,-500.0,0.00013698,2]
[333732842,1722421843857,-500.0,0.00013698,2]
[333732843,1722421843867,-500.0,0.00013698,2]
[333732844,1722421843877,-500.0,0.00013698,2]
[333732845,1722421843886,-500.0,0.00013698,2]
[333732846,1722421843895,-457.39497482,0.00013698,2]
[333732847,1722421843905,-9406.49,0.00013698,2]
[333732848,1722421843914,-500.0,0.00013698,2]
[333732849,1722421843923,-500.0,0.00013698,2]
[333732850,1722421843933,-584.26202554,0.00013698,2]
[333732851,1722421843943,-500.0,0.00013698,2]
[333732852,1722421843953,-1041.79,0.00013698,2]
[333732853,1722421843964,-1074.03,0.00013698,2]
[333732854,1722421843974,-1662.85,0.00013698,2]
[333732855,1722421843984,-1822.47,0.00013698,2]
[333732856,1722421843993,-500.0,0.00013698,2]
[333732857,1722421844002,-1405.56,0.00013698,2]
[333732858,1722421844012,-500.0,0.00013698,2]
[333732859,1722421844023,-151.0,0.00013698,2]